bitfinex/quotes_SOLUSD_20240912
["timestamp","ask_amount","ask_price","bid_price","bid_amount"]
[1726115584489,6.6148,136.06,136.01,6.6169]
[1726115585505,21.5636,136.1,136.03,6.6158]
[1726115586009,20.0,136.09,136.02,23.1576]
[1726115586796,6.6143,136.07,136.02,23.1576]
[1726115587096,20.0,136.09,136.03,6.6161]
[1726115587326,6.6143,136.07,136.02,23.1576]
[1726115588710,50.2683624,136.08,136.0,21.945]
[1726115589010,20.0,136.07,136.0,21.945]
[1726115590283,6.6158,136.04,136.0,21.945]
[1726115591202,6.6167,136.02,136.0,15.2876]
[1726115591379,50.0,136.06,135.97,6.6253]
[1726115591583,35.9728,136.05,135.97,6.6253]
[1726115592376,6.6173,136.01,135.97,6.6253]
[1726115592984,6.6167,136.02,135.97,6.6253]
[1726115594997,6.6167,136.02,135.96,39.356]
[1726115595202,6.6174,136.01,135.96,39.356]
[1726115595385,6.6174,136.01,135.96,32.7365]
[1726115595585,6.6178,136.0,135.96,32.7365]
[1726115598890,66.5393,136.04,135.93,16.8204624]
[1726115599097,20.0,136.03,135.93,16.8204624]
[1726115599304,6.6177,136.0,135.95,6.62]
[1726115599828,20.0,136.03,135.96,6.6195]
[1726115600807,6.6173,136.01,135.97,6.6191]
[1726115601017,20.0,136.03,135.98,6.6183]
[1726115601212,20.0,136.04,135.98,6.6183]
[1726115601415,20.0,136.04,135.95,16.5493]
[1726115601416,6.6167,136.02,135.97,6.619]
[1726115606428,6.6155,136.05,136.0,6.6174]
[1726115606917,6.6181,135.99,135.94,38.7019]
[1726115607413,6.6186,135.98,135.94,32.0818]
[1726115608923,6.6186,135.98,135.94,15.5309]
[1726115609223,6.6186,135.98,135.93,6.8892624]
[1726115611223,6.6191,135.97,135.93,0.2683624]
[1726115613111,72.7417,136.01,135.93,0.2683624]
[1726115613314,35.5496,136.0,135.93,0.2683624]
[1726115614336,6.62,135.95,135.93,0.2683624]
[1726115617631,6.6205,135.94,135.93,0.2683624]
[1726115650945,15.4015,135.95,135.89,0.2683624]
[1726115650946,6.6223,135.91,135.89,0.2683624]
[1726115655671,6.6225,135.9,135.89,0.2683624]
[1726115656163,6.62,135.95,135.9,6.6224]
[1726115657663,2.99273367,135.97,135.89,0.2683624]
[1726115657869,20.0,135.98,135.89,0.2683624]
[1726115658872,6.6201,135.95,135.89,6.8908624]
[1726115659664,6.6206,135.94,135.89,6.8908624]
[1726115660776,6.621,135.93,135.89,6.8908624]
[1726115661272,6.6206,135.94,135.9,6.6224]
[1726115661573,20.0,135.98,135.91,23.776884]
[1726115661751,20.0,135.98,135.92,16.217]
[1726115661957,20.0,135.99,135.92,16.217]
[1726115663272,6.6187,135.98,135.93,6.6209]
[1726115664563,6.6187,135.98,135.92,22.8384]
[1726115664765,6.6193,135.97,135.92,22.8384]
[1726115665281,6.6205,135.95,135.92,16.217]
[1726115666878,6.6208,135.94,135.9,16.5555]
[1726115671180,36.5454,135.99,135.9,16.5555]
[1726115671361,6.6197,135.96,135.91,6.6217]
[1726115672703,6.6201,135.95,135.9,23.178]
[1726115679570,6.6206,135.94,135.9,16.5555]
[1726115683173,6.6206,135.94,135.9,23.178]
[1726115684410,6.6201,135.95,135.9,23.178]
[1726115684579,7.67825585,135.93,135.9,23.178]
[1726115687208,7.67825585,135.93,135.9,16.5555]
[1726115687709,14.29925585,135.93,135.89,23.1571624]
[1726115689303,6.6215,135.92,135.89,16.5342624]
[1726115692005,14.29935585,135.93,135.89,16.5342624]
[1726115693009,6.6216,135.92,135.89,16.5342624]
[1726115695291,6.6216,135.92,135.89,0.2683624]
[1726115696906,14.29935585,135.93,135.89,0.2683624]
[1726115698689,6.6216,135.92,135.89,0.2683624]
[1726115705314,7.67986546,135.91,135.89,0.2683624]
[1726115708823,6.6225,135.9,135.89,0.2683624]
[1726115708997,26.6225,135.9,135.89,0.2683624]
[1726115709530,14.30196546,135.91,135.89,0.2683624]
[1726115710298,6.6225,135.9,135.89,0.2683624]
[1726115711920,7.67986546,135.91,135.89,0.2683624]
[1726115713421,14.30186546,135.91,135.89,0.2683624]
[1726115714032,7.67986546,135.91,135.89,0.2683624]
[1726115716005,14.30206546,135.91,135.89,0.2683624]
[1726115720727,7.67986546,135.91,135.89,0.2683624]
[1726115721821,14.30196546,135.91,135.89,0.2683624]
[1726115728834,7.67986546,135.91,135.89,0.2683624]
[1726115730029,6.6206,135.94,135.89,6.8910624]
[1726115730230,7.67112525,135.93,135.89,6.8910624]
[1726115733326,14.29212525,135.93,135.89,0.2683624]
[1726115734022,6.6219,135.92,135.89,0.2683624]
[1726115734729,6.6221,135.91,135.89,0.2683624]
[1726115735805,6.6215,135.92,135.89,0.2683624]
[1726115736010,7.67112525,135.93,135.89,0.2683624]
[1726115736216,6.6216,135.92,135.89,0.2683624]
[1726115737126,7.67112525,135.93,135.89,0.2683624]
[1726115738419,6.622,135.91,135.89,0.2683624]
[1726115740538,6.6215,135.92,135.89,0.2683624]
[1726115740719,7.67513912,135.91,135.89,0.2683624]
[1726115742542,6.6225,135.9,135.89,0.2683624]
[1726115743024,26.6225,135.9,135.89,0.2683624]
[1726115744639,14.29713912,135.91,135.89,0.2683624]
[1726115744838,7.67513912,135.91,135.89,0.2683624]
[1726115745039,16.5493,135.96,135.89,0.2683624]
[1726115745040,6.6196,135.96,135.89,0.2683624]
[1726115745248,6.6196,135.96,135.89,21.08287243]
[1726115745547,7.67335392,135.95,135.89,21.08287243]
[1726115745738,7.67335392,135.95,135.89,6.5103624]
[1726115745940,6.621,135.93,135.89,6.5103624]
[1726115746325,6.621,135.93,135.89,0.2683624]
[1726115746526,6.6215,135.92,135.89,0.2683624]
[1726115748127,13.68875392,135.95,135.89,0.2683624]
[1726115748317,6.6225,135.9,135.89,0.2683624]
[1726115749240,6.6221,135.91,135.89,0.2683624]
[1726115749433,6.6225,135.9,135.89,0.2683624]
[1726115752049,6.6221,135.91,135.89,0.2683624]
[1726115755648,14.30088889,135.91,135.89,0.2683624]
[1726115760355,6.6225,135.9,135.89,0.2683624]
[1726115764975,14.30078889,135.91,135.89,0.2683624]
[1726115765143,7.67878889,135.91,135.89,0.2683624]
[1726115766450,16.47,135.96,135.89,24.0452464]
[1726115766659,7.67884807,135.95,135.89,24.0452464]
[1726115768259,7.67884807,135.95,135.91,6.6218]
[1726115768768,6.6205,135.94,135.89,6.8912624]
[1726115769148,14.29894807,135.95,135.9,6.6224]
[1726115769353,7.67884807,135.95,135.89,24.0452464]
[1726115769575,7.67884807,135.95,135.91,6.622]
[1726115769748,14.29894807,135.95,135.9,6.6223]
[1726115771545,14.29894807,135.95,135.89,6.8912624]
[1726115771864,6.6207,135.94,135.89,6.8912624]
[1726115772452,6.621,135.93,135.89,6.8912624]
[1726115772754,6.6215,135.92,135.89,0.2683624]
[1726115773356,7.67884807,135.95,135.89,0.2683624]
[1726115773863,6.621,135.94,135.89,6.8912624]
[1726115774168,7.67884807,135.95,135.89,0.2683624]
[1726115775278,6.6212,135.93,135.89,0.2683624]
[1726115775567,6.6212,135.93,135.89,6.8912624]
[1726115775967,6.6212,135.93,135.89,0.2683624]
[1726115776363,6.6215,135.92,135.89,0.2683624]
[1726115779470,6.622,135.91,135.89,0.2683624]
[1726115780667,6.6225,135.9,135.89,0.2683624]
[1726115784159,26.6225,135.9,135.89,0.2683624]
[1726115784374,26.6225,135.9,135.85,0.2683624]
[1726115784375,6.6235,135.88,135.85,0.2683624]
[1726115786877,6.6244,135.86,135.85,0.2683624]
[1726115787377,14.30451009,135.86,135.85,0.2683624]
[1726115790079,7.68011009,135.86,135.85,0.2683624]
[1726115792281,14.30451009,135.86,135.85,0.2683624]
[1726115801178,6.6264,135.82,135.81,0.2683624]
[1726115801965,14.30480191,135.82,135.81,0.2683624]
[1726115803068,7.67840191,135.82,135.81,0.2683624]
[1726115805670,6.625,135.85,135.81,0.2683624]
[1726115806003,7.67577363,135.84,135.81,0.2683624]
[1726115806496,7.67577363,135.84,135.81,6.8951624]
[1726115807073,7.67577363,135.84,135.81,0.2683624]
[1726115807593,14.30127363,135.84,135.81,0.2683624]
[1726115809476,7.67577363,135.84,135.81,0.2683624]
[1726115818008,14.30127363,135.84,135.81,0.2683624]
[1726115818881,7.67577363,135.84,135.81,0.2683624]
[1726115819798,14.30117363,135.84,135.81,0.2683624]
[1726115820711,7.67577363,135.84,135.81,0.2683624]
[1726115821199,14.30127363,135.84,135.81,0.2683624]
[1726115821802,6.6261,135.83,135.81,0.2683624]
[1726115822002,14.30127363,135.84,135.81,0.2683624]
[1726115823396,6.626,135.83,135.81,0.2683624]
[1726115823592,7.67577363,135.84,135.81,0.2683624]
[1726115823593,6.6264,135.82,135.81,0.2683624]
[1726115824415,14.29476237,135.82,135.81,0.2683624]
[1726115825508,7.66836237,135.82,135.81,0.2683624]
[1726115827019,6.6249,135.85,135.81,0.2683624]
[1726115827313,7.66991018,135.84,135.81,0.2683624]
[1726115831317,14.29541018,135.84,135.81,0.2683624]
[1726115836114,7.66991018,135.84,135.81,0.2683624]
[1726115836317,7.66991018,135.84,135.81,6.8951624]
[1726115837903,7.66991018,135.84,135.81,0.2683624]
[1726115838095,14.29531018,135.84,135.81,0.2683624]
[1726115842828,7.66991018,135.84,135.81,0.2683624]
[1726115844203,14.29571018,135.84,135.81,0.2683624]
[1726115851533,7.66991018,135.84,135.81,0.2683624]
[1726115857849,14.29531018,135.84,135.81,0.2683624]
[1726115859930,7.66991018,135.84,135.81,0.2683624]
[1726115862649,14.29541018,135.84,135.81,0.2683624]
[1726115868350,6.626,135.83,135.81,0.2683624]
[1726115868551,6.6264,135.82,135.81,0.2683624]
[1726115869255,14.2940537,135.82,135.81,0.2683624]
[1726115871153,34.2940537,135.82,135.81,0.2683624]
[1726115872144,87.2485705,135.82,135.81,0.2683624]
[1726115873625,111.0254545,135.82,135.81,0.2683624]
[1726115875242,61.0254545,135.82,135.81,0.2683624]
[1726115875556,37.2485705,135.82,135.81,0.2683624]
[1726115875738,37.2485705,135.82,135.77,0.2683624]
[1726115875739,80.6221705,135.82,135.77,0.2683624]
[1726115875931,6.628,135.79,135.77,0.2683624]
[1726115878942,6.6283,135.78,135.77,0.2683624]
[1726115879449,14.29746349,135.78,135.77,0.2683624]
[1726115881447,14.29746349,135.78,135.73,0.2683624]
[1726115881448,14.29746349,135.78,135.74,6.6302]
[1726115882455,14.29746349,135.78,135.73,6.8989624]
[1726115882653,7.66916349,135.78,135.74,6.6299]
[1726115882839,7.66916349,135.78,135.74,6.6298]
[1726115883553,7.66916349,135.78,135.76,6.6293]
[1726115883753,7.66916349,135.78,135.74,16.5748]
[1726115885258,7.66916349,135.78,135.75,6.6297]
[1726115885952,7.66916349,135.78,135.74,23.205]
[1726115886845,7.66916349,135.78,135.74,16.5748]
[1726115886846,14.29756349,135.78,135.74,16.5748]
[1726115887155,14.29756349,135.78,135.74,23.205]
[1726115889264,7.66916349,135.78,135.74,23.205]
[1726115890153,7.66916349,135.78,135.73,0.2683624]
[1726115890658,6.6289,135.77,135.73,0.2683624]
[1726115891842,14.29756349,135.78,135.73,6.8989624]
[1726115892855,14.29756349,135.78,135.74,6.6302]
[1726115894459,7.66916349,135.78,135.73,0.2683624]
[1726115894762,14.29756349,135.78,135.73,6.8989624]
[1726115896861,6.6289,135.77,135.73,6.8989624]
[1726115897040,6.6289,135.77,135.73,0.2683624]
[1726115898762,14.29756349,135.78,135.73,6.8990624]
[1726115902465,7.66916349,135.78,135.74,6.6303]
[1726115904465,6.6288,135.77,135.73,6.8990624]
[1726115905440,6.6288,135.77,135.73,0.2683624]
[1726115905951,7.67067155,135.76,135.73,0.2683624]
[1726115907180,6.6298,135.75,135.73,0.2683624]
[1726115910555,6.6303,135.74,135.73,0.2683624]
[1726115911656,57.67067155,135.76,135.73,0.2683624]
[1726115911657,6.6299,135.75,135.73,0.2683624]
[1726115913273,57.67067155,135.76,135.73,0.2683624]
[1726115913274,6.6303,135.74,135.73,0.2683624]
[1726115916276,14.299476,135.74,135.73,0.2683624]
[1726115917352,64.299476,135.74,135.73,0.2683624]
[1726115917876,14.299476,135.74,135.73,0.2683624]
[1726115918866,7.669176,135.74,135.73,0.2683624]
[1726115919762,14.299476,135.74,135.73,0.2683624]
[1726115923787,7.669176,135.74,135.73,0.2683624]
[1726115927188,14.299476,135.74,135.73,0.2683624]
[1726115927484,7.669176,135.74,135.73,0.2683624]
[1726115929888,7.669176,135.74,135.73,6.8991624]
[1726115930071,13.2606,135.78,135.73,6.8991624]
[1726115930467,7.66672619,135.75,135.73,6.8991624]
[1726115930788,13.2606,135.78,135.73,6.8991624]
[1726115931105,7.66857241,135.76,135.73,6.8991624]
[1726115934189,7.66857241,135.76,135.74,6.6302]
[1726115938479,7.66857241,135.76,135.75,6.6298]
[1726115940675,6.6274,135.8,135.75,6.6298]
[1726115941071,7.66571291,135.78,135.75,6.6298]
[1726115941868,7.66571291,135.78,135.76,6.6292]
[1726115950014,7.66571291,135.78,135.74,16.5749]
[1726115951191,7.66571291,135.78,135.74,23.2051]
[1726115951704,14.29411291,135.78,135.74,23.2051]
[1726115953107,14.29411291,135.78,135.74,16.5749]
[1726115954810,7.66571291,135.78,135.74,16.5749]
[1726115954979,7.66571291,135.78,135.76,6.6293]
[1726115955610,7.66571291,135.78,135.77,6.6288]
[1726115955824,33.0157,135.82,135.78,6.6283]
[1726115955977,7.66311927,135.8,135.78,6.6283]
[1726115959187,7.66311927,135.8,135.76,23.2018]
[1726115960583,6.6283,135.79,135.74,6.6299]
[1726115960785,6.6294,135.76,135.73,0.2683624]
[1726115960985,7.66311927,135.8,135.73,0.2683624]
[1726115961193,6.6283,135.78,135.73,6.8987624]
[1726115961594,14.29051927,135.8,135.74,6.6298]
[1726115962000,14.29051927,135.8,135.75,6.6297]
[1726115962490,6.6279,135.79,135.74,6.6302]
[1726115965013,7.66311927,135.8,135.76,6.6293]
[1726115965208,7.66311927,135.8,135.77,6.6288]
[1726115968594,7.66311927,135.8,135.76,6.6292]
[1726115969504,7.66311927,135.8,135.74,16.5748]
[1726115969703,6.6279,135.79,135.74,23.2047]
[1726115972436,6.6279,135.79,135.73,0.2683624]
[1726115972437,16.3993,135.78,135.73,0.2683624]
[1726115972712,6.6292,135.77,135.73,0.2683624]
[1726115983223,7.69438642,135.76,135.73,0.2683624]
[1726115986716,7.69438642,135.76,135.73,6.8987624]
[1726115986913,23.0278,135.78,135.73,6.8987624]
[1726115987115,30.72191898,135.78,135.73,6.8987624]
[1726116004444,6.6289,135.77,135.73,6.8987624]
[1726116004628,6.6303,135.74,135.73,0.2683624]
[1726116004822,23.1104,135.74,135.73,0.2683624]
[1726116005251,30.80762159,135.74,135.73,0.2683624]
[1726116011132,30.80762159,135.74,135.69,0.2683624]
[1726116011133,6.6322,135.7,135.69,0.2683624]
[1726116012053,70.87068668,135.74,135.69,0.2683624]
[1726116012236,6.6314,135.72,135.69,0.2683624]
[1726116012654,6.6314,135.72,135.65,22.07304837]
[1726116012655,6.6322,135.7,135.65,27.47601077]
[1726116013335,6.6322,135.7,135.65,21.9892624]
[1726116013548,6.6322,135.7,135.65,27.47602881]
[1726116013737,6.6318,135.71,135.66,6.6341]
[1726116014138,24.17732159,135.74,135.66,23.776884]
[1726116014339,7.69722159,135.74,135.68,14.57251003]
[1726116014562,7.69722159,135.74,135.73,6.6308]
[1726116014860,21.632,135.78,135.74,6.6298]
[1726116015046,7.69388376,135.78,135.76,6.6293]
[1726116015228,0.2683624,135.79,135.76,6.6293]
[1726116016048,0.2683624,135.79,135.75,6.6298]
[1726116016251,0.2683624,135.79,135.76,23.776884]
[1726116016450,0.2683624,135.79,135.78,6.6283]
[1726116018564,0.2683624,135.79,135.78,30.405184]
[1726116021661,0.2683624,135.79,135.78,31.87758159]
[1726116022056,0.2683624,135.79,135.78,30.405184]
[1726116022263,0.2683624,135.83,135.82,23.1924]
[1726116022443,0.2683624,135.83,135.82,76.74879403]
[1726116022645,0.2683624,135.87,135.86,23.1855]
[1726116022950,0.2683624,135.87,135.86,61.53489403]
[1726116023866,21.9828,135.93,135.87,6.6237]
[1726116023867,28.6038,135.93,135.87,6.6237]
[1726116024161,6.9414709,135.92,135.87,6.6237]
[1726116024568,0.3199709,135.92,135.87,6.6237]
[1726116024879,0.3199709,135.92,135.88,6.6234]
[1726116027164,0.3199709,135.92,135.89,6.6229]
[1726116027361,0.3199709,135.92,135.88,6.6234]
[1726116028164,0.3199709,135.92,135.86,23.1852]
[1726116029170,6.9414709,135.92,135.87,6.6239]
[1726116032654,0.3199709,135.92,135.88,6.6232]
[1726116032854,0.3199709,135.92,135.88,16.5576]
[1726116033373,0.3199709,135.92,135.91,6.622]
[1726116033578,0.3199709,135.92,135.91,23.177]
[1726116036476,0.3199709,135.92,135.91,46.953884]
[1726116037170,0.3199709,135.92,135.91,23.177]
[1726116038851,0.3199709,135.92,135.91,16.555]
[1726116039058,0.5362748,135.92,135.91,16.555]
[1726116041860,0.5362748,135.92,135.9,6.6224]
[1726116043875,0.5362748,135.92,135.88,23.1813]
[1726116044253,0.5362748,135.92,135.89,6.6228]
[1726116044453,0.5362748,135.92,135.9,6.6224]
[1726116045558,0.5362748,135.92,135.89,6.6229]
[1726116047480,0.5362748,135.92,135.88,16.5583]
[1726116048376,7.1579748,135.92,135.88,16.5583]
[1726116053967,6.6222,135.91,135.86,6.6244]
[1726116054169,0.2163039,135.91,135.87,6.6235]
[1726116058192,0.2163039,135.91,135.89,6.6229]
[1726116059180,0.2163039,135.91,135.9,6.6225]
[1726116059774,0.2163039,135.91,135.9,30.399384]
[1726116060095,0.2163039,135.91,135.9,44.98721614]
[1726116065606,0.2163039,135.91,135.9,6.6225]
[1726116066305,0.2163039,135.91,135.9,44.98721614]
[1726116066679,0.2163039,135.91,135.9,46.45834895]
[1726116067108,0.2163039,135.91,135.9,44.98721614]
[1726116067585,0.2163039,135.91,135.9,46.45823851]
[1726116068186,0.2163039,135.91,135.9,46.45823796]
[1726116068598,0.2163039,135.91,135.9,44.98721614]
[1726116075418,0.3199709,135.97,135.9,44.98721614]
[1726116075419,0.3199709,135.97,135.96,6.6195]
[1726116075623,0.3199709,135.97,135.96,45.44434902]
[1726116075910,0.3199709,135.97,135.96,44.98421614]
[1726116080506,0.3199709,135.97,135.96,66.45477424]
[1726116080704,0.3199709,136.02,136.0,6.6175]
[1726116080910,0.3199709,136.02,136.01,1.47018109]
[1726116081719,0.3199709,136.02,136.01,6.6171]
[1726116085511,0.3199709,136.02,136.0,21.20533214]
[1726116085512,0.2699943,136.02,136.0,21.20533214]
[1726116087819,0.2699943,136.02,136.0,6.6175]
[1726116088801,0.2699943,136.02,135.99,16.5451]
[1726116089227,6.8867943,136.02,135.97,6.619]
[1726116090412,6.8867943,136.02,135.98,6.6185]
[1726116090413,0.2699943,136.02,135.98,6.6185]
[1726116093633,0.2699943,136.02,135.96,16.5489]
[1726116093942,6.6172,136.01,135.96,23.1683]
[1726116094298,7.96534001,136.02,135.98,6.6181]
[1726116094519,7.96534001,136.02,135.96,31.13673214]
[1726116094723,7.96534001,136.02,135.97,23.776884]
[1726116094935,7.96534001,136.02,135.98,1.47038952]
[1726116095128,7.96534001,136.02,135.99,1.47038983]
[1726116095427,7.96534001,136.02,135.99,6.6179]
[1726116095930,7.96534001,136.02,135.98,6.6185]
[1726116098513,14.58204001,136.02,135.98,6.6185]
[1726116099103,14.58204001,136.02,135.97,6.619]
[1726116100127,7.96534001,136.02,135.97,6.619]
[1726116100318,7.96534001,136.02,135.98,6.6185]
[1726116103632,6.2447,136.01,135.97,6.619]
[1726116104323,5.7447,136.01,135.97,6.619]
[1726116104631,5.7447,136.01,135.98,6.6185]
[1726116104936,5.7447,136.01,135.97,6.619]
[1726116107523,6.6181,135.99,135.93,16.5521]
[1726116108328,21.9409,136.0,135.95,6.62]
[1726116109207,15.3233,136.0,135.96,6.6194]
[1726116112030,21.9409,136.0,135.95,6.62]
[1726116112337,6.6182,135.99,135.95,6.62]
[1726116112507,6.6182,135.99,135.94,6.6204]
[1726116112712,6.6191,135.97,135.92,6.6214]
[1726116113732,16.3119,135.95,135.91,6.622]
[1726116115443,22.932,135.95,135.9,23.1782]
[1726116119934,16.3119,135.95,135.91,6.622]
[1726116120627,16.3119,135.95,135.92,6.6214]
[1726116121023,16.3119,135.95,135.93,6.621]
[1726116122155,7.69866026,135.97,135.94,6.6205]
[1726116122443,16.3558,135.98,135.94,6.6205]
[1726116124145,16.3558,135.98,135.94,16.5503]
[1726116124354,6.6322,135.99,135.96,6.6195]
[1726116128657,6.6322,135.99,135.91,72.545984]
[1726116128658,6.6322,135.99,135.91,23.776884]
[1726116128843,6.6322,135.99,135.91,6.6215]
[1726116128844,16.2577,135.96,135.91,6.6215]
[1726116129052,22.8774,135.96,135.91,12.09406913]
[1726116129368,6.6201,135.95,135.9,23.1776]
[1726116131941,6.6201,135.95,135.91,6.622]
[1726116132145,22.8773,135.96,135.91,6.622]
[1726116132834,30.57586096,135.96,135.91,6.622]
[1726116134562,6.6201,135.95,135.9,23.1776]
[1726116135055,23.95626096,135.96,135.91,6.6216]
[1726116135273,30.57596096,135.96,135.91,6.6216]
[1726116136545,6.6201,135.95,135.91,6.6216]
[1726116141841,6.6201,135.95,135.9,23.1776]
[1726116142964,6.621,135.94,135.9,16.5552]
[1726116143760,6.621,135.94,135.9,23.1776]
[1726116144445,6.6201,135.95,135.9,23.1776]
[1726116148367,23.95626096,135.96,135.92,6.6213]
[1726116148775,30.57586096,135.96,135.91,6.6219]
[1726116155674,23.95626096,135.96,135.91,23.776884]
[1726116155864,6.6191,135.97,135.91,38.36471614]
[1726116156060,22.0873247,135.99,135.91,38.36471614]
[1726116156272,6.6187,135.98,135.93,6.621]
[1726116156573,6.6192,135.97,135.93,6.621]
[1726116156984,6.6196,135.96,135.9,16.5552]
[1726116157159,6.6196,135.96,135.91,6.6219]
[1726116162563,6.6204,135.95,135.9,23.1776]
[1726116163683,29.77841891,135.99,135.92,16.5533]
[1726116163990,6.6196,135.96,135.92,16.5533]
[1726116167082,6.6201,135.95,135.91,6.6219]
[1726116167963,6.6201,135.95,135.9,6.6224]
[1726116169180,6.6201,135.95,135.91,6.6219]
[1726116171501,6.6196,135.96,135.91,6.6219]
[1726116172161,6.6196,135.96,135.92,6.6214]
[1726116173472,14.31393249,135.97,135.92,6.6214]
[1726116178489,14.31393249,135.97,135.93,6.621]
[1726116179503,7.69483249,135.97,135.93,6.621]
[1726116180312,14.31393249,135.97,135.93,6.621]
[1726116188893,7.69483249,135.97,135.95,6.6199]
[1726116189284,22.0873247,135.99,135.96,6.6195]
[1726116189790,15.4551247,135.99,135.96,6.6195]
[1726116190915,15.4551247,135.99,135.95,23.1693]
[1726116194091,22.0733247,135.99,135.95,23.1693]
[1726116194602,15.4551247,135.99,135.95,23.1693]
[1726116196185,15.4551247,135.99,135.96,6.6192]
[1726116196599,15.4551247,135.99,135.95,23.1692]
[1726116197611,15.4551247,135.99,135.96,6.6195]
[1726116203018,15.4551247,135.99,135.97,6.619]
[1726116203307,0.2047247,135.99,135.97,6.619]
[1726116204305,0.2047247,135.99,135.98,6.6186]
[1726116204611,0.2047247,135.99,135.98,30.395484]
[1726116206710,0.2047247,135.99,135.98,44.98331614]
[1726116207293,0.2047247,135.99,135.98,46.45341925]
[1726116207909,0.2047247,135.99,135.98,44.98331614]
[1726116210292,0.2047247,135.99,135.98,30.395484]
[1726116224117,0.2047247,135.99,135.98,31.86557663]
[1726116224500,0.2047247,135.99,135.98,30.395484]
[1726116229613,0.2619404,136.03,135.98,30.395484]
[1726116229614,0.2619404,136.03,136.02,23.1582]
[1726116229819,0.2619404,136.03,136.02,46.935084]
[1726116230003,0.2619404,136.03,136.02,48.40500893]
[1726116231025,0.2619404,136.03,136.02,46.935084]
[1726116231335,0.2619404,136.03,136.02,23.1582]
[1726116243914,0.2619404,136.03,136.01,6.617]
[1726116246256,0.2619404,136.03,136.0,6.6176]
[1726116250633,0.2619404,136.03,136.01,6.6171]
[1726116250949,0.2619404,136.03,136.02,6.6166]
[1726116256253,0.2619404,136.03,136.01,23.1592]
[1726116265363,0.2619404,136.03,136.02,6.6166]
[1726116270140,0.2619404,136.03,136.01,16.5422]
[1726116283865,6.8781404,136.03,135.99,6.618]
[1726116286956,6.8781404,136.03,135.98,23.1646]
[1726116291869,6.6167,136.02,135.98,23.1646]
[1726116294553,6.6167,136.02,135.98,16.5461]
[1726116295882,14.27411693,136.02,135.98,16.5461]
[1726116296062,29.97401693,136.02,135.98,16.5461]
[1726116298973,29.97401693,136.02,135.94,29.78923214]
[1726116298974,6.6172,136.01,135.96,6.6194]
[1726116301077,6.6177,136.0,135.96,6.6194]
[1726116301956,6.6177,136.0,135.95,6.62]
[1726116302567,6.6181,135.99,135.95,6.62]
[1726116304574,6.6181,135.99,135.94,23.1707]
[1726116304895,23.35731693,136.02,135.9,16.5995]
[1726116305103,6.6196,135.96,135.91,40.331384]
[1726116305407,15.6876,135.98,135.95,6.62]
[1726116305603,15.6876,135.98,135.96,6.6195]
[1726116305775,15.6876,135.98,135.95,6.62]
[1726116306793,15.6876,135.98,135.93,23.1724]
[1726116307167,22.3063,135.98,135.93,23.1724]
[1726116309705,6.6191,135.97,135.93,16.5518]
[1726116312301,15.6876,135.98,135.89,0.2619404]
[1726116312302,15.4737,135.95,135.89,0.2619404]
[1726116313400,6.622,135.91,135.89,0.2619404]
[1726116314888,13.1998,135.91,135.89,0.2619404]
[1726116318285,7.66341209,135.92,135.89,0.2619404]
[1726116319195,14.28501209,135.92,135.89,0.2619404]
[1726116319528,6.622,135.91,135.89,0.2619404]
[1726116323222,22.2829,135.9,135.89,0.2619404]
[1726116326504,15.6604,135.9,135.89,0.2619404]
[1726116327802,7.66341209,135.92,135.89,0.2619404]
[1726116328436,14.28501209,135.92,135.89,0.2619404]
[1726116328939,6.6225,135.9,135.89,0.2619404]
[1726116332025,6.6221,135.91,135.89,0.2619404]
[1726116333932,6.6225,135.9,135.89,0.2619404]
[1726116341206,14.28440547,135.91,135.89,0.2619404]
[1726116341930,6.622,135.91,135.89,0.2619404]
[1726116343542,6.6225,135.9,135.89,0.2619404]
[1726116346931,16.1623,135.94,135.89,0.2619404]
[1726116347124,22.7832,135.94,135.89,0.2619404]
[1726116347332,6.6209,135.94,135.89,0.2619404]
[1726116348450,6.6209,135.94,135.89,6.8844404]
[1726116349912,6.6219,135.92,135.89,0.2619404]
[1726116350545,14.27708798,135.92,135.89,0.2619404]
[1726116350843,6.6222,135.91,135.89,0.2619404]
[1726116351139,6.6225,135.9,135.89,0.2619404]
[1726116351729,6.6221,135.91,135.89,0.2619404]
[1726116354430,6.6225,135.9,135.89,0.2619404]